[Event "Chinese League Div-A Rapid 2022"]
[Site "Fuling,Chongqing"]
[Date "2022.09.06"]
[Round "1.29"]
[White "Wang, Chuqiao"]
[Black "Hou, Yifan"]
[Result "0-1"]
[ECO "A50"]
[WhiteElo "2037"]
[BlackElo "2650"]
[Annotator "TA"]
[PlyCount "110"]
[EventDate "2022.09.07"]
[EventType "team-tourn"]
[EventCountry "CHN"]
[SourceTitle "playchess.com"]
[Source "ChessBase"]
[SourceQuality "1"]
[TimeControl "1500+10"]

{[%evp 13,110,14,20,8,5,-18,-14,-15,0,0,0,-8,0,-31,-25,-27,-11,-22,-17,-10,0,0,0,0,0,0,0,0,0,0,79,68,75,-14,0,0,0,-129,-72,-154,-150,-153,-154,-145,-147,-145,-140,-178,-72,-190,-199,-184,-176,-266,-156,-188,-185,-221,-217,-222,-203,-276,-191,-322,-316,-329,-272,-262,-272,-239,-250,-244,-231,-247,-192,-198,-212,-205,-191,-181,-83,-83,-77,-77,-77,-188,-188,-176,-102,-258,-258,-1824,-1569,-5089,-4942,-5057,-4674,-1517,-1259]} 1. d4 {[%emt 0:00:02]} Nf6 {[%emt 0:00:01]} 2. c4 {[%emt 0:00:05]} b6 {[%emt 0:00:01]} 3. Nc3 {[%emt 0:00:11]} Bb7 {[%emt 0:00:03]} 4. f3 {[%emt 0:00:16]} d5 {[%emt 0:00:23]} 5. cxd5 {[%emt 0:00:31]} Nxd5 {[%emt 0:00:03]} 6. e4 {[%emt 0:00:15]} Nxc3 {[%emt 0:00:03]} 7. bxc3 {[%emt 0:00:03]} e6 {[%emt 0:00:01]} 8. Be3 {[%emt 0:01:03] A50: Queen's Fianchetto Defence (1 d4 Nf6 2 c4 b6).} Be7 {[%emt 0:01:01]} 9. Bc4 {[%emt 0:01:43]} O-O {[%emt 0:04:56]} 10. Ne2 {[%emt 0:01:09] The position is equal.} Nc6 {[%emt 0:00:47]} 11. O-O {[%emt 0:01:26]} Na5 {[%emt 0:00:02]} 12. Bd3 {[%emt 0:00:10]} c5 {[%emt 0:00:02]} 13. Rc1 {[%emt 0:06:20]} Qd7 {[%emt 0:00:41]} 14. Qd2 {[%emt 0:01:18]} Rac8 {[%emt 0:00:19]} 15. Qb2 {[%emt 0:01:55] [#]} h6 $146 {[%emt 0:03:09]} ({Predecessor:} 15... Rfd8 16. Rfd1 Qe8 17. Qb1 h6 18. Bb5 Qf8 19. Rf1 a6 20. Bd3 b5 21. f4 cxd4 22. cxd4 {0-1 (52) Sakalauskas,V (2388)-Vedrickas,T (2344) Vilnius 2014}) 16. Rfd1 {[%emt 0:00:27]} Bg5 {[%emt 0:02:05]} 17. Bxg5 {[%emt 0:01:24]} hxg5 {[%emt 0:00:01]} 18. Qd2 {[%emt 0:02:45]} Qe7 {[%emt 0:02:28]} 19. e5 {[%emt 0:03:09]} Nc6 {[%emt 0:02:22]} 20. Be4 {[%emt 0:01:22]} Rc7 {[%emt 0:03:29]} 21. Qe3 {[%emt 0:01:44]} Na5 {[%emt 0:02:50]} (21... Rfc8 $11) 22. Bxb7 $16 {[%emt 0:00:30]} Rxb7 {[%emt 0:00:12]} 23. d5 {[%emt 0:00:43]} (23. Ng3 $16) 23... exd5 $11 {[%emt 0:00:47]} 24. Rxd5 {[%emt 0:00:02]} Re8 {[%emt 0:00:20]} 25. f4 {[%emt 0:00:30]} (25. Ng3 $11 {keeps the balance.} Nc4 26. Qe4 Nxe5 27. Nf5 (27. Rxe5 $2 Qxe5 28. Rd1 Qxe4 $19)) 25... gxf4 {[%emt 0:00:07]} ({Better is} 25... Rd7 $1 {[%cal Rd7d5]} 26. Rxd7 Qxd7) 26. Qxf4 {[%emt 0:00:09]} (26. Qe4 $142) 26... Rd7 $1 $17 {[%emt 0:00:41]} 27. Rxd7 {[%emt 0:00:14]} Qxd7 {[%emt 0:00:01]} 28. Ng3 {[%emt 0:00:06]} Nc6 {[%emt 0:00:23]} 29. Re1 {[%emt 0:00:11]} Qd5 {[%emt 0:00:38][%csl LRa2,LRe5][%cal Rc6e5]} 30. Nf5 {[%emt 0:00:12]} Rxe5 {[%emt 0:00:18]} (30... Nxe5 $19 31. Rf1 Qd7) 31. Rf1 {[%emt 0:00:11] Against Nf3} (31. Rxe5 $17 {keeps fighting.} Qxe5 32. Qxe5 Nxe5 33. Kf2) 31... Ne7 $19 {[%emt 0:01:09]} ({Inferior is} 31... Qxa2 32. Qg4 g6 33. Nh6+ Kh7 34. Nxf7 $11) 32. Nxe7+ {[%emt 0:00:05]} Rxe7 {[%emt 0:00:01][%mdl 4096] Endgame KQR-KQR} 33. h3 {[%emt 0:00:13]} (33. Qb8+ {was called for.} Kh7 34. Qg3) 33... Qe5 {[%emt 0:00:30]} (33... Qxa2 $19 34. c4 Qe2) 34. Qh4 {[%emt 0:00:08]} Qe4 {[%emt 0:00:11]} 35. Qf2 {[%emt 0:00:16]} Qe3 {[%emt 0:00:06]} 36. Rd1 {[%emt 0:00:01]} g6 {[%emt 0:00:17]} (36... Qxc3 $2 37. Rd8+ Kh7 38. Qh4+ Kg6 39. Qxe7 $18) 37. c4 {[%emt 0:00:15]} Kg7 {[%emt 0:00:07]} 38. Kf1 {[%emt 0:00:05]} (38. a4 {was the only defense.}) 38... Qc3 {[%emt 0:00:33]} 39. Qf4 {[%emt 0:00:14]} Re5 {[%emt 0:00:17] Threatens to win with ...Rf5.} 40. Kg1 {[%emt 0:00:09]} Qe3+ {[%emt 0:00:01]} 41. Qf2 {[%emt 0:00:05]} Re4 {[%emt 0:00:02]} 42. Rd7 {[%emt 0:00:11]} Qxf2+ {[%emt 0:00:29]} 43. Kxf2 {[%emt 0:00:01]} Rxc4 {[%emt 0:00:03] White must now prevent ...Rc2+.} 44. Rxa7 {[%emt 0:00:02] KR-KR} Rc2+ {[%emt 0:00:05]} 45. Kf3 {[%emt 0:00:02]} b5 {[%emt 0:00:04]} 46. a3 {[%emt 0:00:29]} Ra2 {[%emt 0:00:02]} (46... Rb2 $19 {has better winning chances.} 47. Rb7 Kf6) 47. Ra5 $17 {[%emt 0:00:06]} Rb2 {[%emt 0:00:11] Black is more active.} 48. a4 {[%emt 0:00:16]} bxa4 {[%emt 0:00:20]} 49. Rxc5 {[%emt 0:00:15]} (49. Rxa4 $17 Rb3+ 50. Ke2) 49... a3 $19 {[%emt 0:00:02]} 50. Ra5 {[%emt 0:00:01] [#]} a2 {[%emt 0:00:01]} (50... Ra2 $1 $19 {And now ...Ra1 would win.} 51. Ke4 Kh6) 51. h4 $2 {[%emt 0:00:24] [#] Loses the game.} (51. g4 $17) 51... f5 $1 {[%emt 0:00:09]} 52. Kf4 $2 {[%emt 0:00:09]} (52. Ra6) 52... Rxg2 {[%emt 0:00:08] Black is clearly winning.} 53. Ra7+ {[%emt 0:00:11]} Kh6 {[%emt 0:00:02] Strongly threatening ...Rg4+.} 54. Ra8 {[%emt 0:00:06]} Rg4+ {[%emt 0:00:09]} 55. Kf3 {[%emt 0:00:02]} Rxh4 {[%emt 0:00:01] Weighted Error Value: White=0.56/Black=0.16 (very precise)} 0-1

[Event "Chinese League Div-A Rapid 2022"]
[Site "Fuling,Chongqing"]
[Date "2022.09.06"]
[Round "1.30"]
[White "Huang, Qian"]
[Black "Yan, Tianqi"]
[Result "1-0"]
[ECO "A08"]
[WhiteElo "2433"]
[BlackElo "2188"]
[Annotator "TA"]
[PlyCount "73"]
[EventDate "2022.09.07"]
[EventType "team-tourn"]
[EventCountry "CHN"]
[SourceTitle "playchess.com"]
[Source "ChessBase"]
[SourceQuality "1"]
[TimeControl "1500+10"]

{[%evp 11,73,-35,-22,-26,0,0,0,0,11,-13,-9,-16,0,0,11,0,25,38,49,45,59,36,59,59,56,42,57,39,45,22,81,34,48,40,114,87,104,75,218,112,117,111,115,100,39,0,0,0,0,-160,-152,-179,-183,-179,-166,-159,-158,-190,-34,-926,29987,29988,29987,29988]} 1. Nf3 {[%emt 0:00:03]} d5 {[%emt 0:00:04]} 2. g3 {[%emt 0:00:02]} Nf6 {[%emt 0:00:09]} 3. Bg2 {[%emt 0:00:01]} c5 {[%emt 0:00:19]} 4. O-O {[%emt 0:00:53]} Nc6 {[%emt 0:00:05]} 5. d3 {[%emt 0:00:05]} e5 {[%emt 0:00:06]} 6. e4 {[%emt 0:00:23]} d4 {[%emt 0:00:15]} 7. Na3 {[%emt 0:00:49] A08: King's Indian Attack.} Qc7 {[%emt 0:02:48] [#]} 8. Nb5 $146 {[%emt 0:00:10]} ({Predecessor:} 8. c3 Be7 9. cxd4 cxd4 10. Bd2 O-O 11. Rc1 Qb8 12. Nh4 g6 13. h3 Bd7 14. Bh6 Re8 {1-0 (42) Sulskis,S (2518)-Narva,M (2218) Parnu 2016}) 8... Qb8 {[%emt 0:00:30]} 9. a4 {[%emt 0:01:00] The position is equal.} Be7 {[%emt 0:01:17]} 10. Na3 {[%emt 0:01:04]} O-O {[%emt 0:01:58]} 11. Nc4 {[%emt 0:00:30]} Be6 {[%emt 0:02:10]} 12. b3 {[%emt 0:01:15]} Nd7 {[%emt 0:00:48]} 13. Ng5 {[%emt 0:00:34]} Bxg5 {[%emt 0:02:43]} (13... Bxc4 $5 14. bxc4 h6 $11) 14. Bxg5 {[%emt 0:00:02]} Bxc4 {[%emt 0:00:06]} 15. bxc4 {[%emt 0:00:05]} Qd6 {[%emt 0:00:13]} 16. Bd2 {[%emt 0:00:57]} a5 {[%emt 0:01:22]} 17. f4 {[%emt 0:00:29]} f6 {[%emt 0:01:39]} 18. Bh3 {[%emt 0:00:24]} Rf7 {[%emt 0:00:39]} 19. Rf2 {[%emt 0:05:52]} Nb4 {[%emt 0:02:27]} 20. Bg4 {[%emt 0:01:02]} Re7 {[%emt 0:01:20]} (20... exf4 $11 21. gxf4 (21. Bxf4 Ne5 $11) 21... Re7) 21. h4 {[%emt 0:00:40]} (21. f5 $16) 21... Qc6 {[%emt 0:02:19]} 22. Bh3 {[%emt 0:04:13]} Nb6 {[%emt 0:00:35]} (22... Ra6 $14) 23. fxe5 $16 {[%emt 0:00:01]} Rxe5 {[%emt 0:00:33]} 24. h5 {[%emt 0:00:41]} Nxa4 {[%emt 0:01:02] [#]} (24... Rf8 $16 {was worth a try.}) 25. h6 {[%emt 0:00:03]} (25. Qg4 $1 $18) 25... g6 {[%emt 0:01:01]} 26. Qf1 {[%emt 0:07:27]} Rf8 {[%emt 0:01:02]} 27. Bf4 {[%emt 0:00:26]} Ree8 {[%emt 0:00:42] [#]} 28. Rxa4 $1 {[%emt 0:00:17]} Qxa4 {[%emt 0:00:02]} 29. Bd6 {[%emt 0:00:01][%csl LRc5,LRf6,LRf8]} Qc6 {[%emt 0:00:14]} (29... Nxc2 {gets mated.} 30. Rxf6 Rxf6 31. Qxf6 Qa1+ 32. Kh2) 30. Bxf8 {[%emt 0:00:24]} (30. e5 $1 $11 f5 31. g4) 30... Rxf8 $17 {[%emt 0:00:02]} 31. e5 {[%emt 0:00:01][%cal Re5f6]} f5 {[%emt 0:00:40]} 32. g4 {[%emt 0:00:02][%cal Rg4f5]} Qe8 {[%emt 0:00:48] Threatens to win with ...fxg4.} 33. gxf5 {[%emt 0:00:21]} Qxe5 {[%emt 0:00:07] ...a4 is the strong threat.} 34. Qg2 {[%emt 0:00:02]} Qe3 $2 {[%emt 0:00:13]} ({Black should try} 34... Qe1+ $19 35. Kh2 Qe3) 35. fxg6 $2 {[%emt 0:00:14][%mdl 8192]} (35. Qxb7 $15 Qg5+ 36. Kh2 Qxh6 37. f6) 35... Qxf2+ $4 {[%emt 0:00:11][%mdl 8192]} (35... Qe1+ $19 36. Qf1 Qxf1+ 37. Kxf1 Rxf2+ 38. Kxf2 hxg6 39. Be6+ Kh7) 36. Qxf2 {[%emt 0:00:01]} Rxf2 {[%emt 0:00:01]} 37. Be6+ {[%emt 0:00:02] Weighted Error Value: White=0.47/Black=0.50} 1-0

[Event "Chinese League Div-A Rapid 2022"]
[Site "Fuling,Chongqing"]
[Date "2022.09.07"]
[Round "2.1"]
[White "Bai, Jinshi"]
[Black "Xu, Yi"]
[Result "1-0"]
[ECO "E06"]
[WhiteElo "2586"]
[BlackElo "2507"]
[Annotator "TA"]
[PlyCount "81"]
[EventDate "2022.09.07"]
[EventType "team-tourn"]
[EventCountry "CHN"]
[SourceTitle "playchess.com"]
[Source "ChessBase"]
[SourceQuality "1"]
[TimeControl "1500+10"]

{[%evp 14,81,0,0,0,0,0,0,0,0,0,0,29,24,31,41,64,68,108,100,103,93,93,78,115,108,100,103,101,112,90,68,70,67,497,472,457,457,551,551,551,372,551,549,551,551,549,541,546,543,525,432,431,416,862,825,1591,1518,1567,1572,1395,1258,29965,29965,29972,29972,29969,29971,5591,4602]} 1. d4 {[%emt 0:00:04]} Nf6 {[%emt 0:00:01]} 2. Nf3 {[%emt 0:00:05]} d5 {[%emt 0:00:02]} 3. g3 {[%emt 0:00:07]} e6 {[%emt 0:00:02]} 4. Bg2 {[%emt 0:00:05]} Be7 {[%emt 0:00:01]} 5. c4 {[%emt 0:00:16]} O-O {[%emt 0:00:04]} 6. Qc2 {[%emt 0:00:03]} c5 {[%emt 0:00:44]} 7. dxc5 {[%emt 0:00:09]} Qa5+ {[%emt 0:00:25]} 8. Nc3 {[%emt 0:00:11]} dxc4 {[%emt 0:00:23] E06: Closed Catalan: Early deviations.} 9. O-O {[%emt 0:00:04]} Nc6 {[%emt 0:00:25] 9...Qxc5 is the hot move.} 10. Ne4 $5 {[%emt 0:00:12][%mdl 4] A promising side line.} Nxe4 {[%emt 0:00:40] The position is equal.} 11. Qxe4 {[%emt 0:00:02]} Qxc5 {[%emt 0:00:36]} 12. Be3 {[%emt 0:00:07][%cal Bc1e3,Be3d4,Bd4e5,Be5c3][%mdl 32]} Qb5 {[%emt 0:04:00]} 13. Nd4 {[%emt 0:00:07]} Nxd4 {[%emt 0:00:28]} 14. Bxd4 {[%emt 0:00:02] [#]} e5 $146 {[%emt 0:03:58]} ({Predecessor:} 14... f5 15. Qe3 Bd7 16. Rfd1 Bf6 17. a4 Qb4 18. Bxf6 Rxf6 19. Rxd7 Qxb2 20. Rad1 Rc8 21. Rxb7 Qa2 22. Qxa7 {1-0 (22) Gomez,R (1904)-Fidel,R (2156) Mar del Plata 2009}) 15. a4 {[%emt 0:01:53]} Qa6 {[%emt 0:01:53]} 16. Bxe5 {[%emt 0:00:39]} ({Much weaker is} 16. Qxe5 $6 Bf6 17. Qf4 Bxd4 18. Qxd4 Be6 $11) 16... Re8 {[%emt 0:02:20]} 17. Bc3 {[%emt 0:07:59]} Be6 {[%emt 0:00:52]} 18. Rfd1 {[%emt 0:02:19]} b6 {[%emt 0:05:17]} 19. Qe5 $40 {[%emt 0:07:43][%csl Gc3][%cal Re5g7][%mdl 128] White wants a kill.} Bf6 {[%emt 0:00:14] [#]} 20. Qb5 {[%emt 0:00:02] White is much more active.} Qxb5 {[%emt 0:00:40]} 21. axb5 {[%emt 0:00:01]} Rad8 {[%emt 0:00:05]} 22. Bc6 {[%emt 0:00:49]} Rxd1+ {[%emt 0:00:46]} 23. Rxd1 {[%emt 0:00:02]} Bxc3 $4 {[%emt 0:02:01][%mdl 8192] Black cannot hold the game after this.} 24. Bxe8 $18 {[%emt 0:02:20]} ({Weaker is} 24. bxc3 Rc8 $14) 24... Bxb2 $14 {[%emt 0:00:05][%mdl 4096] Endgame KRB-KB} 25. Bd7 {[%emt 0:00:04]} c3 {[%emt 0:02:12] And now ...c2 would win.} 26. Bxe6 {[%emt 0:00:02]} fxe6 $18 {[%emt 0:00:07] KR-KB} 27. Rd8+ {[%emt 0:00:03]} Kf7 {[%emt 0:00:02] aiming for ...c2.} 28. Rc8 {[%emt 0:00:05]} Ke7 {[%emt 0:00:33]} 29. Kf1 {[%emt 0:00:31]} Kd7 {[%emt 0:00:38] [#]} 30. Rc4 {[%emt 0:00:02]} Kd6 {[%emt 0:00:04]} 31. e4 {[%emt 0:00:18]} g5 {[%emt 0:00:26]} 32. f3 {[%emt 0:00:15][%cal Bf2f3,Bf3f4][%mdl 32]} h5 {[%emt 0:00:15]} 33. Ke2 {[%emt 0:00:11]} g4 {[%emt 0:00:06]} (33... h4 $142 34. Kd3 hxg3 35. hxg3 Bc1 36. Rxc3 Bb2) 34. f4 {[%emt 0:00:18]} h4 {[%emt 0:00:12]} 35. gxh4 {[%emt 0:00:27][%cal Bg3h4,Bh4h5][%mdl 32]} Bc1 {[%emt 0:00:07]} 36. Rxc3 {[%emt 0:01:19]} Bxf4 {[%emt 0:00:02]} 37. h3 {[%emt 0:00:02]} gxh3 {[%emt 0:00:17]} 38. Rxh3 {[%emt 0:00:03]} Kc5 {[%emt 0:00:01]} 39. h5 {[%emt 0:00:14]} Bh6 {[%emt 0:00:12]} 40. Rg3 {[%emt 0:00:15]} Kxb5 {[%emt 0:00:14]} 41. Rg6 {[%emt 0:00:01][%csl LRe6,LRh6] Weighted Error Value: White=0.04 (flawless) /Black=0.65} 1-0

[Event "Chinese League Div-A Rapid 2022"]
[Site "Fuling,Chongqing"]
[Date "2022.09.07"]
[Round "2.2"]
[White "Ma, Qun"]
[Black "Lou, Yiping"]
[Result "1-0"]
[ECO "B48"]
[WhiteElo "2666"]
[BlackElo "2485"]
[Annotator "TA"]
[PlyCount "127"]
[EventDate "2022.09.07"]
[EventType "team-tourn"]
[EventCountry "CHN"]
[SourceTitle "playchess.com"]
[Source "ChessBase"]
[SourceQuality "1"]
[TimeControl "1500+10"]

{[%evp 11,127,26,33,17,39,37,33,38,24,3,33,40,43,2,7,0,116,119,144,158,145,153,386,75,115,108,98,119,101,71,211,216,204,214,204,202,623,620,1097,1074,958,137,791,308,363,50,45,47,55,53,53,-8,-9,-10,-10,-9,0,-42,-42,-42,-42,-42,-42,-42,-42,-42,-42,-43,-43,-74,-23,-26,-26,-26,-17,-16,-17,-17,-9,-9,0,-25,0,-122,-122,-122,2,0,0,-240,66,66,70,70,71,70,124,124,124,124,197,169,275,268,268,238,1352,1352,29967,29967,29966,29968,29964,29966,29979,29980,29969,29967]} 1. e4 {[%emt 0:00:07]} c5 {[%emt 0:00:04]} 2. Nf3 {[%emt 0:00:04]} e6 {[%emt 0:00:02]} 3. d4 {[%emt 0:00:04]} cxd4 {[%emt 0:00:02]} 4. Nxd4 {[%emt 0:00:02]} Nc6 {[%emt 0:00:01]} 5. Nc3 {[%emt 0:00:10]} Qc7 {[%emt 0:00:03]} 6. Be3 {[%emt 0:00:23]} a6 {[%emt 0:00:03]} 7. g4 $1 {[%emt 0:00:02][%mdl 4] outshines the older 7.Qd2. B48: Sicilian: Taimanov: 5 Nc3 Qc7 6 Be3 a6 without Be2.} Nxd4 {[%emt 0:01:09]} 8. Qxd4 {[%emt 0:00:06]} b5 {[%emt 0:00:07]} 9. O-O-O {[%emt 0:00:07] White is slightly better.} Bb7 {[%emt 0:02:10]} 10. f3 {[%emt 0:00:03]} Rc8 {[%emt 0:01:08]} 11. Qd2 {[%emt 0:00:07][%cal Of1b5]} Bb4 {[%emt 0:02:43] [#]} 12. Bf4 $146 {[%emt 0:00:07]} (12. Bd4 $5 {[%cal Rd4g7]} Nf6 13. g5 $14) ({Predecessor:} 12. Bd4 f6 13. g5 h6 14. gxh6 Nxh6 15. a3 Bxa3 16. bxa3 e5 17. Nxb5 axb5 18. Bb2 {½-½ (54) Grandelius,N (2672)-Carlsen,M (2865) Wijk aan Zee 2022}) 12... Qc6 {[%emt 0:00:50]} 13. g5 {[%emt 0:00:05]} f6 {[%emt 0:02:38]} (13... Ba5 $11 14. a3 Bxc3 15. bxc3 d5) 14. Rg1 $1 $16 {[%emt 0:02:22]} Ne7 {[%emt 0:03:05]} 15. gxf6 {[%emt 0:00:30]} gxf6 {[%emt 0:00:01]} 16. Rg7 {[%emt 0:00:18] White is more active.} d5 $2 {[%emt 0:04:11]} (16... Rg8 $16 {is a better defense.} 17. Rxh7 Ng6) 17. Rxe7+ $2 {[%emt 0:08:53]} Kxe7 {[%emt 0:02:24] [#]} 18. Nxd5+ {[%emt 0:00:05][%mdl 512]} exd5 {[%emt 0:00:05]} 19. Qxb4+ {[%emt 0:00:03]} Kf7 {[%emt 0:00:04][%csl Gc8][%cal Rc6c2]} 20. Bd3 {[%emt 0:03:30]} Rhe8 {[%emt 0:01:16]} (20... Qc5 $16 {keeps fighting.} 21. Qe1 dxe4 22. fxe4 (22. Bxe4 Bxe4 23. Qxe4 Rce8 $17) 22... Qh5) 21. Qe1 $1 $18 {[%emt 0:01:21] And now Qh4 would win.} dxe4 {[%emt 0:01:00]} 22. Qh4 $1 {[%emt 0:02:30]} (22. Bxe4 Qe6 23. Rd6 Qe7 $17) 22... Kg8 {[%emt 0:00:31]} (22... exd3 $2 23. Qxh7+ Ke6 24. Re1+ Kd5 25. Qxd3+ Kc5 26. Be3+ Rxe3 27. Qxe3+ Kb4 28. Qa3+ Kc4 29. Re4+ Qxe4 30. fxe4 $18) 23. fxe4 {[%emt 0:00:08][%cal Oe4e5]} (23. Bxe4 $2 Rxe4 24. Qg4+ Kh8 $19) (23. Rg1+ Kh8 24. fxe4 (24. Bxe4 $2 Rxe4 25. c3 Re7 $19) (24. Qh6 Rg8 $11) 24... Qb6 $16) 23... Re7 {[%emt 0:02:51] Prevents e5.} (23... Qe6 24. e5 f5) 24. e5 {[%emt 0:00:33]} Rd7 {[%emt 0:00:42][%cal Od7d3]} 25. exf6 {[%emt 0:01:23]} Qg2 {[%emt 0:01:08] Inhibits Rg1.} 26. Be5 $2 {[%emt 0:03:19] A strong pair of Bishops.} (26. Bg3 $18 {and White stays clearly on top. White threatens Qg4+ and mate.} Rf7 27. Bf5) 26... Bf3 {[%emt 0:00:44][%mdl 8192] [#] Against Qg4+} (26... Rxd3 $16 27. f7+ Kxf7 28. Qxh7+ Ke6 29. Qxd3 Kxe5) 27. Re1 $1 {[%emt 0:02:24]} Qg4 {[%emt 0:00:01] [#]} (27... Rxd3 28. f7+ Kf8 29. Qh6+ Kxf7 30. Qf6+ Kg8 31. Qe6+ Kf8 32. Qxc8+ Kf7 33. Qf5+ Kg8 34. Qe6+ Kf8 35. Bd6+ Kg7 36. Qe7+ Kh6 37. Qh4+ Kg7 38. Re7+ Kg6 39. Re6+ Kg7 40. Qf6+ Kg8 41. Qf8#) 28. f7+ $2 {[%emt 0:00:51] Really sharp!} ({Weaker is} 28. Qxg4+ Bxg4 29. Bc3 h5 $14) (28. Qh6 $1 $18 Re8 29. h3) 28... Rxf7 $14 {[%emt 0:00:12][%cal Bd7f7,Bf7f3,Bf3d3,Bd3h3,Bh3h2][%mdl 32]} 29. Qxg4+ {[%emt 0:00:03]} Bxg4 {[%emt 0:00:01]} 30. Rg1 {[%emt 0:00:00]} h5 {[%emt 0:00:08]} 31. h3 {[%emt 0:00:01]} ({Better is} 31. Bg6 $14) 31... Rf3 $1 $11 {[%emt 0:00:06][%csl LRd3,LRh3] aiming for ...Rxd3.} 32. hxg4 {[%emt 0:00:26]} Rxd3 $1 {[%emt 0:00:02]} 33. gxh5+ {[%emt 0:00:01][%mdl 4096] Endgame KRR-KRB} Kh7 {[%emt 0:00:18]} 34. Bg7 {[%emt 0:00:28]} Rh3 {[%emt 0:00:18][%mdl 1024] ...Rg8 is the strong threat. Black has compensation.} 35. h6 {[%emt 0:00:02]} Rh2 {[%emt 0:00:04]} 36. c3 {[%emt 0:00:02]} Re8 {[%emt 0:00:06]} 37. Kb1 {[%emt 0:00:27]} Ree2 {[%emt 0:00:02]} 38. c4 $1 {[%emt 0:00:01]} bxc4 {[%emt 0:00:06]} 39. Rc1 {[%emt 0:00:02]} Re4 {[%emt 0:00:09]} 40. a3 {[%emt 0:00:06]} a5 {[%emt 0:00:07]} (40... Reh4 $17 41. Ka2 Rh1) 41. Ka2 {[%emt 0:00:10]} a4 {[%emt 0:00:11]} 42. Rd1 {[%emt 0:00:09]} Rhe2 {[%emt 0:00:06]} 43. Rd8 {[%emt 0:00:30]} Re8 {[%emt 0:00:02]} 44. Rd7 {[%emt 0:00:06]} R8e7 {[%emt 0:00:02]} 45. Rd8 {[%emt 0:00:04]} Re8 {[%emt 0:00:47]} 46. Rd5 {[%emt 0:00:01]} Rc2 {[%emt 0:00:25] Threatens to win with ...Re1.} 47. Ra5 {[%emt 0:00:19]} (47. Bc3 $11 {keeps the balance.}) 47... Rc1 $1 $17 {[%emt 0:00:12]} 48. Ra7 {[%emt 0:00:18] [#] Black must now prevent Bc3+.} Kg6 {[%emt 0:00:04]} ({Black should play} 48... Re2 $1 $17 {[%cal Oc4c3]} 49. Rc7 (49. Be5+ $2 Kg6 $19) 49... Kg6 50. Rc6+ Kf7 51. Rc7+ Kg6 52. Rc6+ Kf7 53. Rc7+ Kg6) 49. Ra6+ {[%emt 0:00:01]} Kh7 {[%emt 0:00:02]} 50. Bc3 {[%emt 0:00:05] Against Ree1} (50. Ra7 $1 $11 {and White has nothing to worry.}) 50... Rd8 $2 {[%emt 0:00:12]} (50... Re2 $19 {( -> ...Rxc3)} 51. Ra7+ Kxh6) 51. Rxa4 $14 {[%emt 0:00:11]} Kxh6 {[%emt 0:00:24]} 52. Rxc4 {[%emt 0:00:02]} Kg6 {[%emt 0:00:09] Prevents Bg7.} 53. Rf4 {[%emt 0:00:19]} Rb8 {[%emt 0:00:21] [#]} (53... Rdd1 $14) 54. a4 $1 $16 {[%emt 0:00:11]} Rd1 {[%emt 0:00:17]} 55. a5 {[%emt 0:00:02]} Rd5 {[%emt 0:00:04]} (55... Kg5 $16 56. Rf7 Ra8) 56. Ka3 $18 {[%emt 0:00:11]} Rc5 {[%emt 0:00:10]} (56... Rf5 $142 57. Rg4+ Kf7) 57. Ka4 {[%emt 0:00:08]} Kg5 {[%emt 0:00:09]} 58. Rb4 {[%emt 0:00:31]} Ra8 {[%emt 0:00:14]} (58... Rbc8 59. Rb5 Rxb5) 59. Rb5 {[%emt 0:00:11]} Rxb5 {[%emt 0:00:11]} 60. Kxb5 {[%emt 0:00:01] White mates.} Kf5 {[%emt 0:00:11]} 61. a6 {[%emt 0:00:02][%cal Ba5a6,Ba6a7][%mdl 32]} Ke6 {[%emt 0:00:05]} 62. Kb6 {[%emt 0:00:08]} Kd7 {[%emt 0:00:04]} 63. a7 {[%emt 0:00:25]} Rc8 {[%emt 0:00:25]} 64. Be5 {[%emt 0:00:08] Weighted Error Value: White=0.58/Black=0.53} 1-0